bitfinex/quotes_ETHUSD_20241203
["timestamp","ask_amount","ask_price","bid_price","bid_amount"]
[1733192103833,1.20924891,3621.9,3621.8,0.10376707]
[1733192104722,1.5811,3622.6,3621.8,0.10376707]
[1733192104948,0.55460841,3622.5,3621.8,0.10376707]
[1733192105151,1.20924891,3621.9,3621.8,0.10376707]
[1733192105680,0.55460841,3622.5,3622.0,0.05]
[1733192105863,1.5032,3623.2,3622.3,0.55]
[1733192106151,0.1554501,3623.3,3622.3,0.55]
[1733192106152,1.20924891,3622.9,3622.6,0.05]
[1733192106318,1.20924891,3622.7,3622.6,0.05]
[1733192106662,0.1554501,3623.3,3622.6,0.65342746]
[1733192106950,0.1554501,3623.3,3622.7,0.8262]
[1733192107155,1.20924891,3623.2,3622.9,0.55]
[1733192107355,1.20924891,3623.2,3623.0,0.2762]
[1733192107515,1.20924891,3623.2,3623.0,0.30306116]
[1733192107863,1.5245,3623.1,3623.0,0.05486116]
[1733192108056,1.93434479,3623.1,3623.0,0.05486116]
[1733192108297,0.40984479,3623.1,3623.0,0.028]
[1733192108501,0.1554501,3623.3,3623.0,0.028]
[1733192108681,1.20924891,3623.1,3623.0,0.028]
[1733192111794,2.75154891,3623.1,3623.0,0.028]
[1733192113681,1.20924891,3623.1,3623.0,0.028]
[1733192114771,1.20924891,3623.1,3623.0,0.05926107]
[1733192115310,1.20924891,3623.1,3623.0,0.028]
[1733192115595,2.65359569,3623.3,3623.0,0.028]
[1733192117003,0.1554501,3623.3,3623.1,0.05]
[1733192117210,0.1554501,3623.3,3623.1,0.08696978]
[1733192117579,0.1554501,3623.3,3623.1,0.05]
[1733192120438,2.65359569,3623.3,3623.0,0.028]
[1733192120746,0.1554501,3623.3,3623.0,0.028]
[1733192121291,0.1554501,3623.3,3623.0,0.578]
[1733192121490,0.1554501,3623.3,3623.0,0.028]
[1733192127360,0.1554501,3623.3,3623.0,0.578]
[1733192127773,0.1554501,3623.3,3623.1,0.05]
[1733192127951,0.1554501,3623.3,3623.2,0.55]
[1733192128536,0.1554501,3623.3,3623.2,0.8262]
[1733192129978,0.55125438,3624.1,3623.3,0.05]
[1733192130176,0.55125438,3624.1,3623.2,0.85379747]
[1733192130177,0.55125438,3624.1,3623.5,0.05]
[1733192130343,1.5619,3624.6,3623.6,0.55]
[1733192131070,2.10895603,3624.6,3623.6,0.55]
[1733192131474,2.10895603,3624.6,3623.7,0.05]
[1733192131675,0.54705603,3624.6,3623.8,0.55]
[1733192132003,4.21635176,3626.0,3624.4,0.55]
[1733192132004,1.6293,3625.2,3624.4,0.55]
[1733192132169,1.6293,3625.2,3624.4,0.578]
[1733192132376,1.6293,3625.2,3624.4,0.528]
[1733192132601,1.6293,3625.5,3624.5,0.04706619]
[1733192132915,2.49814559,3625.4,3624.6,0.05]
[1733192133064,1.87365627,3626.9,3624.6,0.05]
[1733192133065,2.49814559,3625.8,3624.6,0.078]
[1733192133987,2.49814559,3625.8,3624.7,0.04681226]
[1733192134185,2.49814559,3625.8,3624.6,0.078]
[1733192134391,2.49814559,3625.8,3624.7,0.04681226]
[1733192134702,0.56091587,3626.0,3624.9,0.05]
[1733192134870,0.56091587,3626.0,3624.9,0.10558427]
[1733192135068,0.56091587,3626.0,3624.9,0.078]
[1733192137279,2.49814559,3625.8,3624.9,0.078]
[1733192137607,1.5994,3625.7,3624.9,0.078]
[1733192138166,2.00915456,3625.7,3624.9,0.078]
[1733192138412,1.5679,3626.0,3624.9,0.078]
[1733192138880,2.49814559,3625.8,3624.9,0.078]
[1733192142518,0.56163365,3626.1,3625.2,0.55]
[1733192142821,1.5301,3626.6,3625.6,0.55]
[1733192142972,1.70197389,3626.6,3625.6,0.55]
[1733192143176,1.70197389,3626.6,3625.6,0.578]
[1733192143437,1.70197389,3626.6,3625.7,0.04366489]
[1733192143640,1.70197389,3626.6,3625.6,0.578]
[1733192143801,0.17187389,3626.6,3625.8,0.04365068]
[1733192143999,0.18863886,3626.9,3625.9,0.6]
[1733192144514,0.18863886,3626.9,3625.9,0.05]
[1733192145142,0.74349515,3626.9,3625.9,0.05]
[1733192145640,2.49814559,3626.7,3625.9,0.05]
[1733192145811,0.32416407,3626.6,3625.9,0.05]
[1733192146416,0.74349515,3626.9,3625.9,0.05]
[1733192147530,0.74349515,3626.9,3626.0,0.55]
[1733192147737,0.74349515,3626.9,3626.1,0.05]
[1733192147909,0.18863886,3626.9,3626.2,0.8262]
[1733192148248,0.18863886,3626.9,3626.3,0.04314952]
[1733192148601,0.18863886,3626.9,3626.3,0.07114952]
[1733192149147,0.1554501,3626.9,3626.3,0.07114952]
[1733192150360,0.1554501,3626.9,3626.4,0.05]
[1733192150571,0.1554501,3626.9,3626.8,0.2762]
[1733192150725,0.75,3627.2,3626.8,0.49414603]
[1733192151046,0.75,3627.2,3627.0,0.8262]
[1733192151255,0.75,3627.2,3627.1,0.8762]
[1733192151553,0.55595109,3628.3,3627.3,0.05]
[1733192151911,0.55595109,3628.3,3627.4,0.04148327]
[1733192152145,0.55595109,3628.3,3627.5,0.05]
[1733192153333,0.55595109,3628.3,3627.6,0.03971601]
[1733192153859,0.55595109,3628.3,3627.5,0.05]
[1733192154050,0.55595109,3628.3,3627.7,0.0395382]
[1733192154386,0.55595109,3628.3,3627.5,0.27998386]
[1733192154589,0.55595109,3628.3,3627.5,0.05]
[1733192154790,0.30540967,3628.2,3627.6,0.0395524]
[1733192154947,0.30540967,3628.2,3627.6,0.028]
[1733192155279,0.55595109,3628.3,3627.6,0.028]
[1733192156659,2.49814559,3628.4,3627.6,0.028]
[1733192157160,2.49814559,3628.4,3627.7,0.05]
[1733192157354,2.49814559,3628.0,3627.7,0.05]
[1733192157576,2.49814559,3628.0,3627.6,0.028]
[1733192157776,0.24981456,3627.9,3627.6,0.028]
[1733192159253,1.5588,3627.8,3627.6,0.028]
[1733192159864,0.24981456,3627.9,3627.0,0.05]
[1733192160360,0.24981456,3627.9,3627.0,0.27974994]
[1733192160574,4.15254559,3627.6,3627.0,0.05]
[1733192160763,0.41525456,3627.5,3626.7,0.05]
[1733192161088,0.24981456,3627.9,3626.7,0.05]
[1733192161089,1.90421456,3627.9,3626.7,0.05]
[1733192161259,0.53877365,3628.4,3626.8,0.2]
[1733192161449,2.49814559,3629.2,3627.2,0.2]
[1733192161650,2.49814559,3629.2,3627.4,0.05]
[1733192161850,0.48833456,3629.1,3627.4,0.05]
[1733192162103,0.48833456,3629.1,3627.9,0.05]
[1733192162690,0.48833456,3629.1,3628.0,0.03606674]
[1733192165097,2.49814559,3628.8,3628.0,0.03606674]
[1733192165671,0.55538695,3629.0,3628.4,0.55]
[1733192166000,0.75,3629.4,3628.7,0.05]
[1733192166164,0.75,3629.4,3628.8,0.55]
[1733192166367,0.75,3629.4,3628.9,0.05]
[1733192166589,0.75,3629.4,3628.9,0.08581637]
[1733192166892,0.75,3629.4,3628.9,0.05]
[1733192169452,2.49814559,3629.3,3628.9,0.05]
[1733192169603,2.49814559,3629.3,3628.9,0.02760524]
[1733192169604,0.48308456,3629.2,3628.9,0.02760524]
[1733192170250,0.75,3629.4,3628.9,0.02760524]
[1733192170628,0.75,3629.4,3629.0,0.05]
[1733192176347,0.75,3629.4,3629.1,0.03536912]
[1733192176554,0.75,3629.4,3629.0,0.03536912]
[1733192176707,3.24814559,3629.4,3629.2,0.03179716]
[1733192176912,3.57296015,3629.4,3629.2,0.02760524]
[1733192177221,3.24814559,3629.4,3629.2,0.02760524]
[1733192177532,0.75,3629.4,3629.2,0.02760524]
[1733192178344,0.75,3629.4,3629.3,0.03178297]
[1733192178551,0.75,3629.4,3629.3,0.88508821]
[1733192179548,0.75,3629.4,3629.3,0.92038821]
[1733192181022,0.75,3629.4,3629.3,0.37038821]
[1733192182357,0.75,3629.4,3629.3,0.33508821]
[1733192182713,3.24814559,3629.4,3629.3,0.02760524]
[1733192182919,3.48539559,3629.4,3629.3,0.02760524]
[1733192183223,3.24814559,3629.4,3629.3,0.02760524]
[1733192184513,0.75,3629.4,3629.3,0.02760524]
[1733192185354,0.75,3629.4,3629.3,0.06290524]
[1733192185674,0.75,3629.4,3629.3,0.33860524]
[1733192188979,0.75,3629.4,3629.3,0.02760524]
[1733192190147,3.24814559,3629.4,3629.3,0.02760524]
[1733192190347,0.75,3629.4,3629.3,0.02760524]
[1733192192460,4.81774559,3629.4,3629.3,0.02760524]
[1733192192657,5.29952015,3629.4,3629.3,0.02760524]
[1733192195363,4.81774559,3629.4,3629.3,0.02760524]
[1733192196154,0.75,3629.4,3629.3,0.02760524]
[1733192198446,3.24814559,3629.4,3629.3,0.02760524]
[1733192199486,4.87454559,3629.4,3629.3,0.02760524]
[1733192205610,3.24814559,3629.4,3629.3,0.02760524]
[1733192207287,0.75,3629.4,3629.3,0.02760524]
[1733192209812,0.75,3629.4,3629.3,0.06290524]
[1733192210695,0.75,3629.4,3629.3,0.02760524]
[1733192212321,2.49814559,3629.4,3629.3,0.02760524]
[1733192215148,2.90783903,3629.4,3629.3,0.02760524]
[1733192224561,1.5656,3629.6,3629.3,0.02760524]
[1733192224746,0.03318876,3629.7,3629.3,0.02760524]
[1733192227667,0.34390034,3629.9,3629.3,0.02760524]
[1733192229140,4.00364559,3630.2,3629.3,0.02760524]
[1733192229682,0.55453527,3630.0,3629.3,0.02760524]
[1733192232180,2.49814559,3629.8,3629.3,0.02760524]
[1733192232397,2.49814559,3629.4,3629.3,0.02760524]
[1733192232584,2.49814559,3629.8,3629.3,0.02760524]
[1733192233083,2.49814559,3629.8,3629.4,0.0353]
[1733192233383,0.55453527,3630.0,3629.4,0.0353]
[1733192233692,2.49814559,3630.2,3629.4,0.0353]
[1733192236579,2.49814559,3629.8,3629.3,0.02760524]
[1733192237481,2.49814559,3630.2,3629.3,0.02760524]
[1733192238221,2.49814559,3630.2,3629.4,0.0353]
[1733192239777,2.49814559,3629.8,3629.4,0.0353]
[1733192242325,2.49814559,3630.2,3629.4,0.0353]
[1733192244525,1.6312,3630.4,3629.4,0.0353]
[1733192244729,0.70876619,3630.5,3629.6,0.0353]
[1733192244730,0.1554501,3630.5,3629.6,0.0353]
[1733192244930,0.1554501,3630.5,3629.7,0.2757]
[1733192245162,0.1554501,3630.5,3629.8,0.0353]
[1733192246473,1.7072501,3630.5,3629.8,0.0353]
[1733192246629,2.49814559,3630.4,3629.9,0.2757]
[1733192247474,1.7072501,3630.5,3629.9,0.2757]
[1733192248755,0.1554501,3630.5,3629.9,0.2757]
[1733192250278,0.1554501,3630.5,3630.0,0.0353]
[1733192250581,0.1554501,3630.5,3630.1,0.2757]
[1733192251078,0.1554501,3630.5,3630.2,0.0353]
[1733192252790,0.1554501,3630.5,3630.4,0.83496012]
[1733192253145,0.1554501,3630.5,3630.4,0.86140602]
[1733192253349,0.1554501,3630.5,3630.4,0.3021459]
[1733192253541,0.1554501,3630.5,3630.4,0.2757]
[1733192253766,0.1554501,3630.5,3630.2,0.0353]
[1733192254745,0.1554501,3630.5,3630.3,0.02555851]
[1733192254979,0.1554501,3630.5,3630.4,0.0353]
[1733192255181,0.1554501,3630.5,3630.4,0.33654433]
[1733192256156,0.1554501,3630.5,3630.4,0.34494227]
[1733192260499,0.1554501,3630.5,3630.4,0.9224834]
[1733192260986,0.1554501,3630.5,3630.4,0.8257]
[1733192262400,0.02224552,3632.2,3630.4,0.8257]
[1733192262401,0.02224552,3632.2,3630.8,0.2757]
[1733192262603,0.02224552,3632.2,3631.2,0.2757]
[1733192262812,0.02224552,3632.2,3631.4,0.2757]
[1733192263873,0.02224552,3632.2,3631.3,0.02753233]
[1733192263874,0.02224552,3632.2,3631.5,0.2757]
[1733192264068,0.02224552,3632.2,3631.6,0.02753226]
[1733192264268,0.02224552,3632.2,3631.9,0.2757]
[1733192265266,0.02224552,3632.2,3631.5,0.23341142]
[1733192265267,0.02224552,3632.2,3631.6,0.2757]
[1733192265471,0.02224552,3632.2,3631.8,0.2757]
[1733192265903,0.02224552,3632.2,3631.9,0.8257]
[1733192266977,0.02224552,3632.2,3631.9,0.55]
[1733192267786,0.02224552,3632.2,3631.9,0.78524018]
[1733192269009,2.49814559,3633.0,3631.9,0.78524018]
[1733192269216,2.49814559,3632.7,3631.9,0.81284542]
[1733192269812,2.49814559,3633.0,3631.9,0.81284542]
[1733192270819,2.70971791,3633.3,3631.9,0.81284542]
[1733192272094,1.5086,3633.5,3632.0,0.0275274]
[1733192272300,2.07137115,3633.5,3632.0,0.0275274]
[1733192272616,1.5086,3633.5,3631.9,0.81284542]
[1733192272816,1.5086,3633.5,3632.0,0.02752596]
[1733192273390,1.5086,3633.5,3631.9,0.81284542]
[1733192273604,1.5086,3633.5,3632.1,0.55]
[1733192273814,2.49814559,3633.3,3632.1,0.55]
[1733192274122,2.49814559,3633.3,3632.0,0.55]
[1733192274621,1.5086,3633.5,3632.0,0.55]
[1733192276306,0.54921836,3633.6,3632.0,0.55]
[1733192276307,0.54921836,3633.6,3632.1,2.52567161]
[1733192276636,0.1554501,3634.1,3632.6,0.55]
[1733192276782,0.1554501,3634.1,3632.7,0.02751845]
[1733192277131,0.1554501,3634.1,3633.1,0.2757]
[1733192277298,0.1554501,3634.1,3633.2,0.2757]
[1733192277620,0.1554501,3634.1,3633.3,0.55]
[1733192278519,0.1554501,3634.1,3632.8,0.2757]
[1733192278685,0.1554501,3634.1,3633.2,0.2757]
[1733192279123,1.6448,3634.0,3632.8,0.8257]
[1733192279429,0.1554501,3634.1,3632.8,0.85330524]
[1733192280187,0.1554501,3634.1,3633.2,0.2757]
[1733192280422,0.1554501,3634.1,3633.3,0.8257]
[1733192282903,0.1554501,3634.1,3633.4,0.02751652]
[1733192283226,0.1554501,3634.1,3633.3,0.8257]
[1733192283599,0.1554501,3634.1,3633.3,1.05817781]
[1733192284911,1.6465,3634.0,3632.8,0.02760524]
[1733192285123,2.65359569,3634.1,3632.8,0.02760524]
[1733192285124,0.1554501,3634.1,3632.8,0.02760524]
[1733192286055,2.65359569,3634.1,3632.8,0.25690738]
[1733192286206,1.6101,3634.0,3632.8,0.25690738]
[1733192287101,1.6101,3634.0,3632.9,0.2757]
[1733192288447,1.6101,3634.0,3633.0,0.2757]
[1733192288792,2.49814559,3633.8,3633.0,0.2757]
[1733192288904,2.94213766,3633.8,3633.0,0.2757]
[1733192289247,1.6101,3634.0,3633.0,0.30330524]
[1733192289546,0.1554501,3634.1,3633.1,0.55]
[1733192289750,0.1554501,3634.1,3633.2,0.2757]
[1733192290105,0.1554501,3634.1,3633.2,0.30330524]
[1733192290943,0.1554501,3634.1,3633.3,0.2757]
[1733192291915,0.1554501,3634.1,3633.2,0.02760524]
[1733192292114,0.1554501,3634.1,3633.3,0.2757]
[1733192293131,1.5086,3634.0,3633.2,0.30330524]
[1733192293335,0.41621957,3634.0,3633.2,0.30330524]
[1733192294367,0.1554501,3634.1,3633.2,0.30330524]
[1733192294733,0.55,3634.0,3633.2,0.30330524]
[1733192295852,0.55,3634.0,3633.2,0.3308262]
[1733192296296,0.55,3634.0,3633.2,0.30330524]
[1733192298164,0.1554501,3634.1,3633.3,0.02752091]
[1733192298367,0.1554501,3634.1,3633.2,0.30330524]
[1733192299925,0.55,3634.0,3633.2,0.30330524]
[1733192300597,0.82993387,3634.0,3633.2,0.02760524]
[1733192300796,0.55,3633.7,3633.2,0.02760524]
[1733192303199,0.27297415,3633.7,3633.2,0.02760524]
[1733192303367,2.49814559,3633.8,3633.2,0.02760524]
[1733192304676,2.27841943,3634.1,3633.2,0.02760524]
[1733192304677,0.71781943,3634.1,3633.2,0.02760524]
[1733192305006,0.1554501,3634.1,3633.2,0.02760524]
[1733192306314,0.55,3634.0,3633.2,0.02760524]
[1733192307183,2.1623,3634.0,3633.2,0.02760524]
[1733192308120,2.64388957,3634.0,3633.2,0.02760524]
[1733192308490,0.55,3633.8,3633.2,0.02760524]
[1733192308678,0.55,3633.4,3633.2,0.02760524]
[1733192309020,0.1554501,3634.1,3633.2,0.02760524]
[1733192309187,0.55,3634.0,3633.2,0.02760524]
[1733192309385,0.1554501,3634.1,3633.2,0.05512562]
[1733192309612,0.1554501,3634.1,3633.2,0.02760524]
[1733192310119,0.1554501,3634.1,3633.3,0.02751648]
[1733192310276,0.1554501,3634.1,3633.2,0.02760524]
[1733192312319,0.55,3634.0,3633.2,0.02760524]
[1733192312720,0.87035957,3634.0,3633.2,0.02760524]
[1733192313121,0.55,3634.0,3633.2,0.02760524]
[1733192313432,0.1554501,3634.1,3633.2,0.05512636]
[1733192313635,0.1554501,3634.1,3633.2,0.02760524]
[1733192315229,0.1554501,3634.1,3633.2,0.05512306]
[1733192315418,0.1554501,3634.1,3633.2,0.02760524]
[1733192315746,0.1554501,3634.1,3633.2,0.05512307]
[1733192315896,0.1554501,3634.1,3633.2,0.02760524]
[1733192317634,0.55,3634.0,3633.2,0.02760524]
[1733192317931,1.6864501,3634.1,3633.2,0.02760524]
[1733192317932,0.1554501,3634.1,3633.2,0.02760524]
[1733192318921,0.55,3634.0,3633.2,0.02760524]
[1733192322036,0.1554501,3634.1,3633.2,0.02760524]
[1733192324628,0.1554501,3634.1,3633.2,0.05512497]
[1733192324943,0.1554501,3634.1,3633.2,0.02760524]
[1733192327543,0.55,3634.0,3633.2,0.02760524]
[1733192329009,1.5756,3633.6,3633.2,0.02760524]
[1733192329196,2.49814559,3633.4,3633.2,0.02760524]
[1733192329397,0.55,3633.3,3633.2,0.02760524]
[1733192330297,2.0701,3633.3,3633.2,0.02760524]
[1733192330539,2.0701,3633.3,3631.8,0.2757]
[1733192330740,2.49814559,3633.0,3631.8,0.2757]
[1733192330949,0.55,3632.9,3631.8,0.2757]
[1733192331235,0.55,3632.9,3631.5,0.23542843]
[1733192331236,0.55,3632.9,3631.9,0.2757]
[1733192331606,0.55,3632.5,3631.9,0.2757]
[1733192331998,0.55,3632.5,3631.2,0.23911758]
[1733192332222,0.55,3632.7,3631.3,0.549749]
[1733192332437,2.1772,3632.1,3631.2,0.0024]
[1733192332740,2.1772,3632.1,3631.3,0.0024]
[1733192332914,2.1772,3632.1,3631.2,0.0024]
[1733192333343,2.1772,3632.1,3631.3,0.0024]
[1733192335338,0.55,3632.3,3631.3,0.0024]
[1733192340306,1.8551,3633.8,3631.3,0.0024]
[1733192340511,1.6551,3633.0,3631.3,0.0024]
[1733192340747,1.53,3632.6,3631.3,0.0024]
[1733192341161,2.49814559,3632.3,3631.3,0.0024]
[1733192341562,0.55,3631.8,3631.3,0.0024]
[1733192341864,1.578,3631.7,3631.3,0.0024]
[1733192342075,2.04061456,3631.7,3631.3,0.0024]
[1733192342674,0.55,3631.6,3631.3,0.0024]
[1733192342878,0.55,3631.4,3631.3,0.0024]
[1733192343167,2.1883,3631.4,3631.3,0.0024]
[1733192346555,4.06514559,3631.9,3631.3,0.0024]
[1733192348157,0.55,3631.8,3631.3,0.0024]
[1733192348370,4.06514559,3631.9,3631.3,0.0024]
[1733192348371,1.567,3631.9,3631.3,0.0024]
[1733192348669,1.567,3632.3,3631.3,0.0024]
[1733192349746,0.55,3632.0,3631.3,0.0024]
[1733192351885,2.1781,3631.6,3631.3,0.0024]
[1733192352247,2.1781,3631.6,3631.0,0.2757]
[1733192352453,0.55,3631.1,3631.0,0.2757]
[1733192352652,0.55,3631.1,3630.5,0.2757]
[1733192353583,0.55,3631.1,3629.8,0.2757]
[1733192354123,1.4459,3631.0,3629.8,0.2757]
[1733192354396,0.55,3630.9,3629.8,0.2757]
[1733192354562,0.55,3630.9,3630.5,0.028]
[1733192354769,0.55,3630.9,3629.8,0.53195583]
[1733192355096,0.55,3630.9,3630.5,0.028]
[1733192355264,1.5129,3630.6,3630.5,0.028]
[1733192355462,2.0629,3630.6,3630.5,0.028]
[1733192358963,0.55,3630.5,3628.4,0.2757]
[1733192359173,0.55,3629.7,3628.4,0.6487693]
[1733192359400,0.55,3629.7,3628.4,0.3730693]
[1733192359763,0.55,3629.7,3628.5,0.2757]
[1733192360270,0.55,3629.7,3628.5,0.30325547]
[1733192360471,0.55,3629.7,3628.5,0.2757]
[1733192360671,0.55,3629.7,3628.6,0.02755465]
[1733192360871,0.55,3630.3,3628.5,0.2757]
[1733192361079,0.55,3630.3,3628.7,0.2757]
[1733192361668,0.55,3630.1,3628.7,0.2757]
[1733192362007,0.55,3630.1,3628.7,0.30330524]
[1733192362973,0.55,3630.1,3628.8,0.02755229]
[1733192363702,1.5214,3630.4,3628.8,0.02755229]
[1733192363703,0.55,3630.3,3628.8,0.02755229]
[1733192364084,0.55,3630.3,3628.8,0.05515753]
[1733192366195,0.55,3630.3,3629.0,0.2757]
[1733192366907,1.4061,3630.8,3629.1,0.02755123]
[1733192367211,2.49814559,3630.2,3629.1,0.02760524]
[1733192367370,1.4061,3630.1,3629.1,0.02760524]
[1733192368229,0.55,3630.0,3629.1,0.02760524]
[1733192370785,0.55,3629.7,3629.1,0.02760524]
[1733192371104,0.55,3629.5,3629.1,0.02760524]
[1733192371708,1.00697456,3629.5,3629.1,0.02760524]
[1733192371876,0.55,3629.3,3629.1,0.02760524]
[1733192372369,0.55,3629.5,3629.1,0.02760524]
[1733192374372,0.55,3629.5,3629.1,0.07162519]
[1733192375818,2.49814559,3630.2,3629.1,0.07162519]
[1733192376021,3.95994559,3630.2,3629.2,0.2757]
[1733192376946,2.59814559,3631.6,3629.2,0.2757]
[1733192376947,0.55140166,3630.4,3629.2,0.2757]
[1733192377109,0.55,3630.3,3629.2,0.2757]
[1733192377298,0.55,3630.4,3629.2,0.2757]
[1733192379844,0.55,3630.4,3629.2,0.5085879]
[1733192381847,2.49814559,3630.2,3629.2,0.2757]
[1733192382155,0.55,3630.1,3629.2,0.2757]
[1733192383218,1.4993,3630.0,3629.2,0.2757]
[1733192383418,0.55,3629.9,3629.1,0.34732519]
[1733192383612,0.55,3629.9,3629.1,0.07162519]
[1733192384918,2.49814559,3630.6,3629.1,0.34732519]
[1733192385107,0.55064233,3630.7,3629.1,0.37487591]
[1733192385307,1.3903,3630.9,3629.3,0.2757]
[1733192385549,1.3903,3630.9,3629.4,0.02754624]
[1733192385754,1.4668,3631.2,3629.4,0.02754624]
[1733192386121,1.4668,3631.2,3629.6,0.2757]
[1733192386448,1.4668,3631.2,3629.6,0.30330524]
[1733192387806,0.55,3631.1,3629.6,0.30330524]
[1733192388531,2.49814559,3630.9,3629.6,0.53736977]
[1733192388848,3.04814559,3630.9,3630.8,0.04401995]
[1733192389323,3.04814559,3630.9,3630.8,0.07162519]
[1733192389509,4.45464559,3630.9,3630.8,0.07162519]
[1733192389712,4.45464559,3630.9,3629.7,0.2757]
[1733192389915,2.49814559,3630.5,3629.7,0.2757]
[1733192390744,2.49814559,3630.5,3629.8,0.2757]
[1733192391622,2.49814559,3630.5,3629.3,0.2757]
[1733192392030,2.49814559,3630.5,3629.8,0.0024]
[1733192392748,2.49814559,3631.3,3629.8,0.0024]
[1733192392957,4.16216015,3631.3,3629.8,0.0024]
[1733192394314,0.55,3631.2,3629.8,0.0024]
[1733192394515,2.0675,3630.8,3629.8,0.0024]
[1733192395212,2.49814559,3630.5,3629.8,0.0024]
[1733192395435,0.55,3630.4,3629.8,0.0024]
[1733192395649,0.85481456,3630.4,3629.8,0.0024]
[1733192398630,2.49814559,3630.1,3629.8,0.0024]
[1733192398826,0.55,3630.0,3629.8,0.0024]
[1733192399155,2.0633,3629.9,3629.8,0.0024]
[1733192400768,4.56144559,3629.9,3629.8,0.0024]
[1733192401076,1.508,3629.7,3629.2,0.040877]
[1733192401225,1.00561456,3629.6,3629.2,0.040877]
[1733192403327,1.00561456,3629.6,3629.2,0.068077]
[1733192403747,0.55494887,3629.8,3629.2,0.068077]
[1733192404260,0.55494887,3629.8,3629.2,0.04583148]
[1733192404575,2.49814559,3630.0,3629.2,0.04583148]
[1733192405139,0.55,3629.6,3629.2,0.04583148]
[1733192406243,0.55,3629.4,3629.2,0.04583148]
[1733192406538,1.00314456,3629.4,3629.2,0.04583148]
[1733192408258,0.45314456,3629.4,3629.2,0.04583148]
[1733192408463,1.5144,3629.9,3629.2,0.04583148]
[1733192408464,0.55,3629.8,3629.2,0.04583148]
[1733192408772,0.54005012,3629.6,3629.2,0.04583148]
[1733192408963,0.55,3629.5,3629.2,0.04583148]
[1733192411145,3.96874559,3630.2,3629.2,0.04583148]
[1733192411384,2.49814559,3630.6,3629.2,0.04583148]
[1733192411582,1.72041456,3630.5,3629.2,0.04583148]
[1733192411954,0.55251451,3630.3,3629.2,0.04583148]
[1733192412154,0.24981456,3630.5,3629.3,0.2757]
[1733192412556,0.24981456,3630.5,3629.3,0.3029]
[1733192413286,0.55,3630.4,3629.3,0.3029]
[1733192413488,0.55,3630.1,3629.3,0.0272]
[1733192415015,2.49814559,3630.2,3629.3,0.0272]
[1733192416914,0.54975691,3630.6,3629.3,0.05475104]
[1733192417218,2.48712849,3632.2,3629.3,0.05475104]
[1733192417219,2.49814559,3631.2,3629.3,0.05474734]
[1733192417376,2.49814559,3631.2,3629.3,0.0272]
[1733192417573,2.49814559,3631.2,3629.3,0.3029]
[1733192418105,0.54495326,3631.1,3629.3,0.3029]
[1733192418584,0.55,3631.0,3629.3,0.0272]
[1733192418786,0.54015604,3631.8,3630.8,0.2757]
[1733192419014,0.54015604,3631.8,3631.3,2.77384559]
[1733192419198,0.54015604,3631.8,3631.5,0.2757]
[1733192419400,0.54015604,3631.8,3631.7,0.2757]
[1733192419802,1.4745,3633.2,3631.7,0.2757]
[1733192419988,0.1554501,3634.1,3631.7,0.3029]
[1733192420178,0.1554501,3634.1,3632.5,2.77384559]
[1733192420527,0.1554501,3634.1,3633.0,0.2757]
[1733192421487,0.1554501,3634.1,3633.1,0.2757]
[1733192421822,3.97264559,3634.0,3633.1,0.2757]
[1733192421978,3.97264559,3634.0,3631.9,0.23684031]
[1733192422312,0.55,3633.9,3631.9,0.0272]
[1733192422519,0.55,3633.7,3631.9,0.28248732]
[1733192423181,0.1554501,3634.1,3631.9,0.28248732]
[1733192423182,0.55,3633.9,3632.6,2.49814559]
[1733192423519,0.1554501,3634.1,3632.7,0.02752463]
[1733192424815,0.55,3634.0,3632.6,2.52534559]
[1733192425025,0.1554501,3634.1,3633.9,2.49814559]
[1733192425180,1.3842,3636.3,3633.9,2.52565391]
[1733192425374,1.3842,3636.3,3634.6,2.49814559]
[1733192425693,1.3842,3636.3,3634.3,3.1396771]
[1733192425898,0.5543986,3636.2,3634.4,0.3414757]
[1733192426201,1.38,3636.8,3635.1,3.1396771]
[1733192426404,0.03438028,3636.7,3635.1,3.1396771]
[1733192426698,0.57429021,3636.7,3635.1,3.1396771]
[1733192426899,0.57429019,3636.7,3635.1,3.1396771]
[1733192427224,0.5399092,3636.7,3635.2,0.02750512]
[1733192427413,0.5399092,3636.7,3635.1,3.1396771]
[1733192427775,0.03438162,3636.7,3635.1,3.1396771]
[1733192427995,0.75,3637.4,3636.6,3.1396771]
[1733192428192,0.14924779,3637.4,3637.3,8.73]
[1733192428491,1e-08,3637.4,3637.3,0.0272]
[1733192428694,1e-08,3637.4,3636.0,3.1396771]
[1733192429033,0.1,3637.3,3636.0,3.1396771]
[1733192429533,0.1,3637.3,3635.6,3.68055957]
[1733192429885,0.1,3637.3,3635.6,3.65173147]
[1733192430094,1e-08,3637.4,3636.0,3.1396771]
[1733192430791,0.55000001,3637.4,3636.0,3.1396771]
[1733192431042,0.55000001,3637.4,3636.0,3.1428771]
[1733192431329,0.55,3637.2,3636.0,0.0032]
[1733192431721,1e-08,3637.4,3636.0,0.0032]
[1733192431722,0.55000001,3637.4,3636.0,0.0032]
[1733192432099,0.55,3637.2,3636.0,0.0032]
[1733192434037,0.1,3636.9,3636.0,0.0032]
[1733192434189,0.55,3636.6,3636.0,0.0032]
[1733192434736,1e-08,3637.4,3636.2,3.1396771]
[1733192434917,0.2554501,3637.7,3636.7,3.1396771]
[1733192434918,0.1546501,3637.7,3636.7,3.1396771]
[1733192435123,0.12107472,3637.7,3636.8,8.73]
[1733192435527,0.12107472,3637.7,3636.9,8.73]
[1733192435697,0.12107472,3637.7,3637.5,3.1396771]
[1733192436035,0.1,3639.6,3637.5,3.1396771]
[1733192436239,0.1,3639.3,3637.6,3.0]
[1733192437435,0.1,3639.6,3638.0,3.0]
[1733192437644,0.1,3639.6,3638.0,3.0032]
[1733192438415,0.3,3639.6,3638.0,3.0032]
[1733192438612,1.5875,3639.9,3638.0,0.0032]
[1733192438941,0.1,3639.3,3638.1,1.09945]
[1733192440035,1.4473,3639.2,3638.1,1.09945]